Cogmind - Beta 13 @@@ ROGUE MODE // 2024.04.10 @ 15:56:52 Player: Abkaal Result: Destroyed by D-53 Grenadier with Mini Grenade Launcher Performance ------------- Evolutions (0) 0 Regions Visited (2) 400 Robots Destroyed (27) 135 Value Destroyed (518) 518 Prototype IDs (3) 60 Alien Tech Used (0) 0 Bonus (0) 0 TOTAL SCORE: 1113 Bonus ------- None Cogmind --------- Core Integrity 0/250 Matter 290/300 Energy 280/280 System Corruption 5% Temperature Cool (0) Movement Treading (480) Ox4 Location -10/Mines Parts ------- > --- POWER (1) -------- Heavy Ion Engine > --- PROPULSION (2) --- Light Treads Compact Wheel > --- UTILITY (2) ------ Huge Storage Unit Signal Interpreter > --- WEAPON (2) ------- (None) > --- INVENTORY (25) --- Light Ion Engine Light Treads Light Treads Light Treads Wheel Wheel Wheel Wheel Wheel Wheel Flight Unit Flight Unit Flight Unit Flight Unit Small Storage Unit High-capacity Storage Unit Improved Terrain Scanner Propulsion Shielding Particle Gun Beam Cannon Assault Rifle Rocket Launcher Rocket Launcher Hammer Peak State ------------ > --- POWER ------------ Heavy Ion Engine > --- PROPULSION ------- Compact Wheel Compact Wheel > --- UTILITY ---------- Huge Storage Unit Signal Interpreter > --- WEAPON ----------- Particle Gun Assault Rifle > --- INVENTORY -------- Light Ion Engine Light Treads Light Treads Light Treads Light Treads Wheel Wheel Wheel Wheel Wheel Flight Unit Flight Unit Flight Unit Flight Unit Flight Unit Small Storage Unit High-capacity Storage Unit Improved Terrain Scanner Propulsion Shielding Particle Gun Beam Cannon Assault Rifle Rocket Launcher Rocket Launcher Hammer [Rating: 13] Favorites ----------- Power Heavy Ion Engine Engine Heavy Ion Engine Propulsion Light Treads Treads Light Treads Leg Aluminum Leg Wheel Compact Wheel Utility Transport Network Coupler Storage Huge Storage Unit Processor Transport Network Coupler Weapon Assault Rifle Energy Gun Particle Gun Ballistic Gun Assault Rifle Build | -11 -10 -10 ------- Run | Yrd Mat Min Slots Evolved . | . . . Power . | . . . Propulsion . | . . . Utility . | . . . Weapon . | . . . Parts Attached 20 | 6 13 1 Power 3 | 1 2 . Engine 3 | 1 2 . Core . | . . . Reactor . | . . . Propulsion 8 | 2 5 1 Treads 3 | 2 . 1 Leg 2 | . 2 . Wheel 3 | . 3 . Hover . | . . . Flight . | . . . Utility 5 | 1 4 . Device . | . . . Storage 3 | 1 2 . Processor 2 | . 2 . Hackware . | . . . Protection . | . . . Artifact . | . . . Weapon 4 | 2 2 . Energy Gun 1 | . 1 . Energy Cannon . | . . . Ballistic Gun 3 | 2 1 . Ballistic Cannon . | . . . Launcher . | . . . Special Weapon . | . . . Impact Weapon . | . . . Slashing Weapon . | . . . Piercing Weapon . | . . . Special Melee Weapon . | . . . Unidentified Prototypes 1 | . 1 . Parts Lost 4 | . 1 3 Power . | . . . Propulsion 1 | . . 1 Utility . | . . . Weapon 3 | . 1 2 Highest Loss Streak 3 | . 1 3 To Critical Strikes . | . . . Average Slot Usage (%) 98 | . 98 85 Engine 13 | . 13 14 Treads 14 | . 15 . Wheel 12 | . 12 23 Storage 14 | . 14 14 Processor 12 | . 12 14 Energy Gun 5 | . 5 9 Ballistic Gun 21 | . 22 9 Naked Turns . | . . . Heaviest Build 93 | 14 93 93 Greatest Support 40 | 40 40 32 Greatest Overweight (x) 30 | 2 30 5 Average Overweight (x) 1 | . 1 2 Largest Inventory Capacity 25 | 8 25 25 Average Capacity 19 | 7 20 25 Most Carried 25 | 6 25 25 Average Carried 19 | 3 19 24 Final Capacity 25 | 8 25 25 Final Carried 25 | 6 25 24 Class Distribution -------------------- 100% | Mutant Dominant Class ---------------- Mutant | -10/Materials Mutant | -10/Mines Resources | -11 -10 -10 ----------- Run | Yrd Mat Min Matter Collected 874 | 141 733 . Remotely . | . . . Salvage Created 868 | . 868 . Parts 63 | . 63 . Haulers Intercepted 2 | . 2 . Recyclers Shooed . | . . . Parts Field Recycled . | . . . Retrieved Matter . | . . . Parts Self-Destructed . | . . . Prevented . | . . . Kills | -11 -10 -10 ------- Run | Yrd Mat Min Combat Hostiles Destroyed 17 | . 17 . Guns 17 | . 17 . Classes Destroyed 7 | . 7 . Worker 1 | . 1 . Tunneler 4 | . 4 . Hauler 2 | . 2 . Recycler 1 | . 1 . Watcher 2 | . 2 . Swarmer 6 | . 6 . Grunt 11 | . 11 . Best Kill Streak 4 | . 4 . Combat Bots Only 3 | . 3 . Max Kills in Single Turn 2 | . 2 . Gunslinging . | . . . Exploded . | . . . Melee . | . . . Uniques/NPCs Destroyed . | . . . Combat | -11 -10 -10 -------- Run | Yrd Mat Min Hostile Shots Fired 100 | . 89 11 Missed 28 | . 27 1 Damage Taken 1102 | . 656 446 Core 273 | . 96 177 Absorbed by Shields . | . . . Regen/Repaired (Parts) 111 | . 111 . Core Remaining (%) 100 | 100 . . Volleys Fired 89 | . 89 . Largest 2 | . 2 . Hottest 85 | . 85 . Shots Fired 178 | . 177 1 Gun 178 | . 177 1 Cannon . | . . . Launcher . | . . . Special . | . . . Kinetic 152 | . 151 1 Thermal 26 | . 26 . Explosive . | . . . Electromagnetic . | . . . Robot Hit Streak 9 | . 9 . Robot Miss Streak 6 | . 6 . Penetration Max . | . . . Secondary Targets . | . . . Shots Hit Robots 87 | . 87 . Core Hits 39 | . 39 . Critical Kills . | . . . Critical Parts Destroyed . | . . . Critical Strikes . | . . . Melee Attacks . | . . . Impact . | . . . Slashing . | . . . Piercing . | . . . Sneak Attacks . | . . . Combat Hostiles . | . . . Follow-up Attacks . | . . . Damage Inflicted 1186 | . 1186 . Guns 1186 | . 1186 . Cannons . | . . . Explosions . | . . . Melee . | . . . Ramming . | . . . Kinetic 902 | . 902 . Thermal 284 | . 284 . Explosive . | . . . Electromagnetic . | . . . Impact . | . . . Slashing . | . . . Piercing . | . . . Highest Corruption 5 | . 5 5 Average Corruption 5 | . 5 5 Corruption Purged . | . . . Corruption Blocked . | . . . Effects 33 | . 31 2 Message Errors 12 | . 11 1 Matter Fused 6 | . 6 . Heat Flow Errors 1 | . 1 . Energy Discharges 4 | . 4 . Data Loss (minor) 5 | . 5 . Data Loss (major) 2 | . 2 . Misfires 3 | . 2 1 Overload Shots . | . . . Overflow Damage . | . . . Projectiles . | . . . Explosions . | . . . Melee . | . . . Knockbacks . | . . . Impact . | . . . Kinetic . | . . . Secondary . | . . . Self-Inflicted Damage . | . . . Shots . | . . . Rammed . | . . . Targets Rammed . | . . . Kicked . | . . . Crushed . | . . . Highest Temperature 240 | . 240 . Average Temperature 57 | . 57 . Received Heat Transfer 300 | . 300 . Siege Activations . | . . . Robots Corrupted . | . . . Combat Hostiles . | . . . Parts Fried . | . . . Impact Corruptions . | . . . Robots Melted . | . . . Combat Hostiles . | . . . Parts Melted 1 | . 1 . Heat Transferred 666 | . 666 . Parts Sabotaged . | . . . Parts Stolen . | . . . Parts Stripped . | . . . Power Chain Reactions . | . . . Alert | -11 -10 -10 ------- Run | Yrd Mat Min Peak Influence 217 | . 217 54 Initial 39 | . . 39 Average 76 | . 79 38 Maximum Alert Level 1 | . 1 . Low Security (%) 91 | 100 90 100 Level 1 8 | . 9 . Level 2 . | . . . Level 3 . | . . . Level 4 . | . . . Level 5 . | . . . High Security . | . . . Max Security . | . . . Squads Dispatched 7 | . 7 . Investigation 6 | . 6 . Extermination . | . . . Reinforcement 1 | . 1 . Assault . | . . . Garrison . | . . . Intercept . | . . . Searches Triggered . | . . . Construction Impeded . | . . . Haulers Reinforced . | . . . Active Scanning Responses . | . . . Cargo Convoy Interrupts . | . . . Stealth | -11 -10 -10 --------- Run | Yrd Mat Min Distress Signals 2 | . 2 . Communications Jammed . | . . . Distress Signals . | . . . Times Spotted 35 | . 24 11 Peak Tracking Total 9 | . 5 9 Tactical Retreats 1 | . 1 . Traps | -11 -10 -10 ------- Run | Yrd Mat Min Traps Triggered 2 | . 2 . Indirectly . | . . . Trap Hack Attempts . | . . . Triggered . | . . . Disarmed 6 | . 6 . Reprogrammed . | . . . Reused . | . . . Traps Extracted . | . . . Installed . | . . . Triggered . | . . . Machines | -11 -10 -10 ---------- Run | Yrd Mat Min Machines Disabled 1 | . 1 . Max in Single Turn 1 | . 1 . Machines Repaired . | . . . Machines Dismantled . | . . . Machines Sabotaged . | . . . Overloaded Fab Kills . | . . . Hacking | -11 -10 -10 --------- Run | Yrd Mat Min Machines Accessed 9 | . 9 . Terminals 7 | . 7 . Fabricators . | . . . Repair Stations 1 | . 1 . Recycling Units 1 | . 1 . Scanalyzers . | . . . Garrison Access . | . . . Total Hacks 36 | . 36 . Successful 16 | . 16 . Failed 19 | . 19 . Catastrophic 3 | . 3 . Database Lockouts 1 | . 1 . Manual 16 | . 16 . Terminals 29 | . 29 . Fabricators . | . . . Repair Stations 6 | . 6 . Recycling Units 1 | . 1 . Scanalyzers . | . . . Garrison Access . | . . . Terminal Hacks 11 | . 11 . Robot Analysis 5 | . 5 . Prototype ID Bank 1 | . 1 . Emergency Access Points 1 | . 1 . Scanalyzer Index 1 | . 1 . Alert Level 1 | . 1 . Locate Traps 1 | . 1 . Disarm Traps 1 | . 1 . Fabricator Hacks . | . . . Repair Station Hacks 4 | . 4 . Scan Component 2 | . 2 . Repair 2 | . 2 . Recycling Unit Hacks 1 | . 1 . Report Inventory 1 | . 1 . Scanalyzer . | . . . Garrison Access Hacks . | . . . Unauthorized Hacks . | . . . Terminals . | . . . Fabricators . | . . . Repair Stations . | . . . Recycling Units . | . . . Scanalyzers . | . . . Garrison Access . | . . . Data Cores Recovered . | . . . Used . | . . . Hacking Detections 8 | . 8 . Full Trace Events 8 | . 8 . Feedback Events . | . . . Feedback Blocked . | . . . Robot Schematics Acquired . | . . . Robots Built . | . . . Authchips . | . . . Time . | . . . Total Robot Build Rating . | . . . Part Schematics Acquired . | . . . Parts Built . | . . . Authchips . | . . . Time . | . . . Total Part Build Rating . | . . . Parts Repaired 2 | . 2 . Time 64 | . 64 . Parts Recycled . | . . . Recycled Matter . | . . . Retrieved Matter . | . . . Retrieved Components . | . . . Parts Scanalyzed . | . . . Part Schematics Acquired . | . . . Parts Damaged . | . . . Bothacking | -11 -10 -10 ------------ Run | Yrd Mat Min Used RIF Installer . | . . . Robots Hacked . | . . . Non-combat . | . . . Combat . | . . . Robot Hacks Applied . | . . . Relay Couplers Released . | . . . Fabnet Peak Effective % . | . . . Robots Rewired . | . . . Allies Hacked . | . . . Hacks Repelled . | . . . Allies | -11 -10 -10 -------- Run | Yrd Mat Min Total Allies . | . . . Largest Group . | . . . Highest-Rated Group . | . . . Highest-Rated Ally . | . . . Total Orders . | . . . Ally Attacks . | . . . Total Damage . | . . . Kills . | . . . Allies Corrupted . | . . . Allies Melted . | . . . Intel | -11 -10 -10 ------- Run | Yrd Mat Min Robot Analysis Total 5 | . 5 . Derelict Logs Recovered . | . . . Drone Launches . | . . . Drone Recoveries . | . . . Exploration | -11 -10 -10 ------------- Run | Yrd Mat Min Turns Passed 2114 | 59 2023 32 Spaces Moved 1005 | 30 952 23 Core 13 | 12 1 . Treads 427 | 18 408 1 Legs . | . . . Wheels 565 | . 543 22 Hover . | . . . Flight . | . . . Fastest Speed 50 | 50 130 130 Average Speed 167 | 151 168 149 Slowest Speed 1550 | 160 1550 480 Overloaded Moves . | . . . Propulsion Burnouts . | . . . Robots Hopped . | . . . Cave-ins Triggered . | . . . Exploration Rate (%) 35 | 4 97 5 Regions Visited 2 Branch Regions 1 Pre-discovered Areas . | . . . Known Exits Taken 1 | . 1 . Unknown Exits Taken 1 | 1 . . Scrap Searched . | . . . Spaces Dug . | . . . Terrain Destroyed . | . . . Melee . | . . . Projectile . | . . . AOE . | . . . Terrain Rammed . | . . . Walls Destroyed . | . . . Machines Disabled . | . . . Actions | -11 -10 -10 --------- Run | Yrd Mat Min Total 1277 | 41 1212 24 Wait 94 | . 94 . Move 1003 | 29 951 23 Hop . | . . . Pick Up 45 | 6 39 . Fast Attach 13 | 6 7 . Attach 2 | . 1 1 Detach 1 | . 1 . Swap 5 | . 5 . Drop 25 | . 25 . Fire 89 | . 89 . Melee . | . . . Ram . | . . . Kick . | . . . Crush . | . . . Escape Stasis . | . . . Rewire . | . . . Trap . | . . . Miscellaneous . | . . . Route ------- -11/Scrapyard -10/Materials (discovered 4 exits: *Mat x3 / *Min) -10/Mines History --------- Turn | Location | Event 2 | -11/Scrapyard | Met Revision 17 25 | -11/Scrapyard | Discovered new exit (range 15) 60 | -11/Scrapyard | Entered Materials 307 | -10/Materials | Build established: Mutant 891 | -10/Materials | Discovered new exit (range 6) 1192 | -10/Materials | Central database locked down 1260 | -10/Materials | Discovered new exit (range 6) 1430 | -10/Materials | Discovered new exit (range 16) 1930 | -10/Materials | Repaired Imp. Terrain Scanner 1957 | -10/Materials | Repaired Lgt. Treads 1965 | -10/Materials | Discovered new exit (range 4) 1967 | -10/Materials | Identified exit to Materials 2082 | -10/Materials | Identified exit to Mines 2083 | -10/Materials | Entered Mines 2090 | -10/Mines | Assembled infested the area 2110 | -10/Mines | Core integrity fell below 50% 2112 | -10/Mines | Core integrity fell below 20% 2115 | -10/Mines | Destroyed by D-53 Grenadier with Mini Grenade Launcher Last Messages --------------- Assault Rifle. 02087_ System corrupted: Assault Rifle misfires. 02090_ ALERT: Infestation in the mines, dispatching Demolisher response squad. 02096_ C-30 ARC bursts open, deploying its payload. 02096_ D-53 Grenadier unfolds itself. 02103_ >XQ7VQHF3Y1KU E%IUNUJ7 02105_ as-42844 destroyed. 02105_ as-89083 destroyed. 02107_ as-24279 destroyed. 02107_ Particle Gun destroyed. 02107_ as-75595 destroyed. 02107_ as-76724 destroyed. 02107_ as-28201 destroyed. 02107_ as-43020 destroyed. 02107_ as-21521 destroyed. 02109_ Assault Rifle destroyed. 02109_ Com. Wheel destroyed. 02112_ The unstable cave ceiling collapses. Map ----- +----------------------------------------------------+ | ?????????????????????????????????????? | | ?????????????????????????????????????? | | ?????????????????????????????????????? | | ?????????????????????????????????????? | | ?????????????????????????????????????? | | ?????????????????????????????????????? | | ?????????????????????????????????????? | | ?????????????????????????????????????? | | ?????????????????????????????????????? | | ?????????????????????????????????????? | | ?????????????????????????????????????? | | ?????????????????????????????????????? | | ?????????????????????????????????????? | | ?????????????????????????????????????? | | ?????????????????????????????????????? | | ???????????????????????????????####??? | | ??????????????????????????????## ##?? | | ??????????????????????????????# #?? | | ?????????????????????????????## #?? | | ?????????????????##??????##### ##?? | | ?????????????????? %???### # #??? | | ???????????????????# ?## ##??? | | ???????????????????# # #???? | | ???????????????????# u #???? | | ?????????????????????# # #???? | | ??????????????????????# @ d ##??? | | ?????????????????????# d #??? | | ?????????????????????# #??? | | ?????????????????????## #??? | | ??????????????????????## # #?? | | ???????????????????????#### a ##?? | | ??????????????????????????? #??? | | ??????????????????????????? #??? | | ???????????????????????????# #??? | | ??????????????????????????? #??? | | ???????????????????????????# ##??? | | ???????????????????????????# #???? | | ????????????????????????????##% #???? | | ?????????????????????????????? ##???? | | ?????????????????????????????? ????? | | ?????????????????????????????? ????? | | ?????????????????????????????? ????? | | ?????????????????????????????? ????? | | ?????????????????????????????? ????? | | ?????????????????????????????????????? | | ?????????????????????????????????????? | | ?????????????????????????????????????? | | ?????????????????????????????????????? | | ?????????????????????????????????????? | | ?????????????????????????????????????? | +----------------------------------------------------+ Best States ------------- Heat Dissipation 25 Energy Generation 14 Energy Capacity 280 Matter Stores 300 Matter Capacity 300 Sight Range 16 Terrain Scan Density 10 Evasion (%) 40 Recoil Reduction 2 Item Schematics ----------------- None Robot Schematics ------------------ None Fabricated ------------ Nothing Alien Tech Used ----------------- None Achievements -------------- None Challenges ------------ None Game ------ Seed ArcPowerClaw Manual? 0 Play Time 00:16:38 Cumulative 34.5 hours Start 2024.04.10 @ 15:40:16 End 2024.04.10 @ 15:56:52 Sessions 1 Manual Loads 0 Difficulty Rogue Special Mode None Game No. 23 Rogue 23 Adventurer 0 Explorer 0 Win Type - Total 0 Types 0/0/0/0/0/0/0/0/0 Lore% 29 Gallery% 38 Achievement% 30 Wizard Run 0 Options --------- Layout 2 ASCII 0 Keyboard 1 Movement Numpad Keybinds 0 Fullscreen 1 Font 24/Smallcaps Map View 50x44 Zoom Use 0% Tactical HUD 1 Map Filters NONE Filters NONE Steam 1 RUN: c4e070cf-68e7-4664-9da0-300919b0ca2b